fUST/lending_fUST_20250928
["ID","MTS","AMOUNT","RATE_DAILY","PERIOD"]
[388144962,1759020644915,-480.0,0.00035616,9]
[388144964,1759020644924,-480.0,0.00035616,9]
[388144966,1759020644933,-480.0,0.00035616,9]
[388144968,1759020644942,-480.0,0.00035616,9]
[388144970,1759020644951,-480.0,0.00035616,9]
[388144971,1759020644960,-949.82,0.00035616,9]
[388144973,1759020644970,-480.0,0.00035616,9]
[388144975,1759020644978,-480.0,0.00035616,9]
[388144977,1759020644988,-480.0,0.00035616,9]
[388144979,1759020644997,-480.0,0.00035616,9]
[388144981,1759020645006,-480.0,0.00035616,9]
[388144983,1759020645015,-480.0,0.00035616,9]
[388144985,1759020645025,-548.66,0.00035616,9]
[388144987,1759020645034,-480.0,0.00035616,9]
[388144989,1759020645044,-480.0,0.00035616,9]
[388144991,1759020645053,-1000.38,0.00035616,9]
[388144993,1759020645062,-480.0,0.00035616,9]
[388144995,1759020645071,-822.88,0.00035616,9]
[388144997,1759020645080,-781.83,0.00035616,9]
[388144999,1759020645090,-480.0,0.00035616,9]
[388145001,1759020645099,-480.0,0.00035616,9]
[388145003,1759020645108,-480.0,0.00035616,9]
[388145005,1759020645117,-480.0,0.00035616,9]
[388145007,1759020645127,-480.0,0.00035616,9]
[388145009,1759020645135,-480.0,0.00035616,9]
[388145010,1759020645144,-902.8,0.00035616,9]
[388145012,1759020645153,-480.0,0.00035616,9]
[388145014,1759020645162,-775.41,0.00035616,9]
[388145016,1759020645171,-480.0,0.00035616,9]
[388145018,1759020645180,-993.92,0.00035616,9]
[388145020,1759020645190,-480.0,0.00035616,9]
[388145022,1759020645200,-531.98,0.00035616,9]
[388145024,1759020645209,-480.0,0.00035616,9]
[388145025,1759020645219,-532.11,0.00035616,9]
[388145026,1759020645227,-2166.38,0.00035616,9]
[388145027,1759020645235,-649.68,0.00035616,9]
[388145028,1759020645243,-480.0,0.00035616,9]
[388145029,1759020645251,-592.93,0.00035616,9]
[388145030,1759020645260,-480.0,0.00035616,9]
[388145031,1759020645270,-1115.43,0.00035616,9]
[388145032,1759020645279,-480.0,0.00035616,9]
[388145033,1759020645289,-480.0,0.00035616,9]
[388145034,1759020645299,-480.0,0.00035616,9]
[388145035,1759020645308,-480.0,0.00035616,9]
[388145036,1759020645318,-480.0,0.00035616,9]
[388145037,1759020645327,-480.0,0.00035616,9]
[388145038,1759020645337,-480.0,0.00035616,9]
[388145039,1759020645346,-798.7,0.00035616,9]
[388145040,1759020645356,-480.0,0.00035616,9]
[388145041,1759020645366,-969.49,0.00035616,9]
[388145042,1759020645375,-480.0,0.00035616,9]
[388145043,1759020645385,-480.0,0.00035616,9]
[388145044,1759020645395,-1023.11,0.00035616,9]
[388145045,1759020645404,-480.0,0.00035616,9]
[388145046,1759020645414,-775.95,0.00035616,9]
[388145047,1759020645423,-780.67,0.00035616,9]
[388145048,1759020645433,-480.0,0.00035616,9]
[388145049,1759020645442,-480.0,0.00035616,9]
[388145050,1759020645451,-480.0,0.00035616,9]
[388145051,1759020645461,-480.0,0.00035616,9]
[388145052,1759020645471,-498.02,0.00035616,9]
[388145053,1759020645481,-480.0,0.00035616,9]
[388145054,1759020645491,-480.0,0.00035616,9]
[388145055,1759020645500,-1265.6,0.00035616,9]
[388145056,1759020645509,-480.0,0.00035616,9]
[388145057,1759020645519,-871.27,0.00035616,9]
[388145058,1759020645528,-822.39,0.00035616,9]
[388145059,1759020645538,-659.67,0.00035616,9]
[388145060,1759020645547,-480.0,0.00035616,9]
[388145061,1759020645557,-480.0,0.00035616,9]
[388145062,1759020645567,-480.0,0.00035616,9]
[388145063,1759020645576,-524.55,0.00035616,9]
[388145064,1759020645586,-455.65209119,0.00035616,9]
[388145065,1759020645596,-1150.58,0.00035616,9]
[388145066,1759020645606,-563.85097826,0.00035616,9]
[388145067,1759020645615,-480.0,0.00035616,9]
[388145068,1759020645625,-1230.79,0.00035616,9]
[388145069,1759020645635,-657.58,0.00035616,9]
[388145070,1759020645645,-480.0,0.00035616,9]
[388145071,1759020645655,-535.31,0.00035616,9]
[388145072,1759020645664,-151.0,0.00035616,7]
[388145073,1759020645674,-251.0,0.00035616,7]
[388145074,1759020645683,-480.0,0.00035616,9]
[388145075,1759020645694,-1064.7,0.00035616,9]
[388145076,1759020645704,-497.73789322,0.00035616,9]
[388145078,1759020645717,-480.0,0.00035616,9]
[388145079,1759020645726,-480.0,0.00035616,9]
[388145081,1759020645736,-495.28,0.00035616,9]
[388145083,1759020645745,-1182.37,0.00035616,9]
[388145085,1759020645754,-480.0,0.00035616,9]
[388145087,1759020645763,-1028.45,0.00035616,9]
[388145089,1759020645772,-480.0,0.00035616,9]
[388145091,1759020645781,-2039.11,0.00035616,9]
[388145093,1759020645791,-641.34,0.00035616,9]
[388145095,1759020645801,-1224.7,0.00035616,9]
[388145097,1759020645810,-480.0,0.00035616,9]
[388145099,1759020645821,-480.0,0.00035616,9]
[388145101,1759020645831,-874.02,0.00035616,9]
[388145103,1759020645840,-480.0,0.00035616,9]
[388145105,1759020645850,-480.0,0.00035616,9]
[388145107,1759020645858,-1017.01,0.00035616,9]
[388145109,1759020645868,-480.0,0.00035616,9]
[388145111,1759020645877,-480.0,0.00035616,9]
[388145113,1759020645886,-480.0,0.00035616,2]
[388145115,1759020645895,-1328.12,0.00035616,9]
[388145117,1759020645904,-480.0,0.00035616,9]
[388145119,1759020645914,-608.11,0.00035616,9]
[388145122,1759020645923,-480.0,0.00035616,9]
[388145125,1759020645932,-688.83,0.00035616,9]
[388145127,1759020645941,-1000.0,0.00035616,9]
[388145129,1759020645950,-3211.64,0.00035616,9]
[388145131,1759020645959,-480.0,0.00035616,9]
[388145133,1759020645968,-480.0,0.00035616,9]
[388145135,1759020645977,-919.9,0.00035616,9]
[388145137,1759020645988,-633.36,0.00035616,9]
[388145139,1759020645996,-500.0,0.00035616,13]
[388145141,1759020646005,-480.0,0.00035616,9]
[388145143,1759020646014,-480.0,0.00035616,9]
[388145145,1759020646023,-480.0,0.00035616,9]
[388145147,1759020646032,-2088.47,0.00035616,9]
[388145149,1759020646042,-1794.77,0.00035616,9]
[388145151,1759020646051,-520.0,0.00035616,3]
[388145153,1759020646060,-795.32,0.00035616,9]
[388145155,1759020646069,-480.0,0.00035616,9]
[388145157,1759020646078,-480.0,0.00035616,9]
[388145159,1759020646088,-480.0,0.00035616,9]
[388145161,1759020646096,-480.0,0.00035616,9]
[388145163,1759020646106,-480.0,0.00035616,9]
[388145164,1759020646115,-480.0,0.00035616,9]
[388145167,1759020646126,-480.0,0.00035616,9]
[388145168,1759020646135,-480.0,0.00035616,9]
[388145170,1759020646144,-480.0,0.00035616,9]
[388145172,1759020646154,-480.0,0.00035616,9]
[388145174,1759020646163,-430.29931593,0.00035616,9]
[388145176,1759020646173,-937.74,0.00035616,9]
[388145179,1759020646183,-480.0,0.00035616,9]
[388145180,1759020646192,-1632.21,0.00035616,9]
[388145182,1759020646201,-480.0,0.00035616,9]
[388145184,1759020646211,-513.25,0.00035616,9]
[388145186,1759020646220,-480.0,0.00035616,9]
[388145188,1759020646230,-544.31,0.00035616,9]
[388145190,1759020646239,-480.0,0.00035616,9]
[388145192,1759020646248,-500.0,0.00035616,13]
[388145194,1759020646258,-480.0,0.00035616,9]
[388145196,1759020646266,-480.0,0.00035616,9]
[388145198,1759020646275,-480.0,0.00035616,9]
[388145200,1759020646285,-652.19,0.00035616,9]
[388145202,1759020646294,-480.0,0.00035616,9]
[388145204,1759020646304,-480.0,0.00035616,9]
[388145206,1759020646313,-428.71842867,0.00035616,9]
[388145208,1759020646322,-480.8236545,0.00035616,9]
[388145210,1759020646332,-480.0,0.00035616,9]
[388145212,1759020646340,-480.0,0.00035616,9]
[388145214,1759020646349,-841.42,0.00035616,9]
[388145216,1759020646358,-236.95400475,0.00035616,9]
[388145218,1759020646367,-920.64,0.00035616,9]
[388145220,1759020646376,-480.0,0.00035616,9]
[388145222,1759020646385,-480.0,0.00035616,9]
[388145224,1759020646394,-480.0,0.00035616,9]
[388145226,1759020646403,-500.0,0.00035616,9]
[388145228,1759020646413,-1397.26,0.00035616,9]
[388145230,1759020646422,-480.0,0.00035616,9]
[388145232,1759020646432,-480.0,0.00035616,9]
[388145234,1759020646442,-480.0,0.00035616,9]
[388145236,1759020646451,-644.68,0.00035616,9]
[388145238,1759020646460,-1057.16,0.00035616,9]
[388145240,1759020646469,-480.0,0.00035616,9]
[388145242,1759020646478,-480.0,0.00035616,9]
[388145244,1759020646487,-480.0,0.00035616,9]
[388145246,1759020646496,-480.0,0.00035616,9]
[388145248,1759020646505,-1023.59,0.00035616,9]
[388145250,1759020646514,-480.0,0.00035616,9]
[388145252,1759020646523,-480.0,0.00035616,9]
[388145259,1759020646579,-480.0,0.00035616,9]
[388145261,1759020646588,-480.0,0.00035616,9]
[388145263,1759020646597,-549.9,0.00035616,9]
[388145265,1759020646606,-481.07326834,0.00035616,9]
[388145268,1759020646615,-480.0,0.00035616,9]
[388145269,1759020646624,-480.0,0.00035616,9]
[388145273,1759020646643,-480.0,0.00035616,9]
[388145275,1759020646654,-480.0,0.00035616,9]
[388145277,1759020646663,-480.0,0.00035616,9]
[388145279,1759020646672,-524.88,0.00035616,9]
[388145281,1759020646682,-480.0,0.00035616,9]
[388145283,1759020646692,-1065.23,0.00035616,9]
[388145285,1759020646702,-480.0,0.00035616,9]
[388145287,1759020646714,-480.0,0.00035616,7]
[388145289,1759020646724,-1004.49,0.00035616,9]
[388145291,1759020646734,-578.32,0.00035616,9]
[388145293,1759020646743,-480.0,0.00035616,9]
[388145295,1759020646752,-868.66,0.00035616,9]
[388145297,1759020646762,-480.0,0.00035616,9]
[388145299,1759020646771,-480.0,0.00035616,9]
[388145301,1759020646781,-480.0,0.00035616,9]
[388145303,1759020646791,-1470.97,0.00035616,9]
[388145305,1759020646800,-552.32,0.00035616,9]
[388145307,1759020646810,-500.0,0.00035616,9]
[388145309,1759020646819,-480.0,0.00035616,9]
[388145311,1759020646829,-500.0,0.00035616,9]
[388145313,1759020646838,-500.0,0.00035616,9]
[388145315,1759020646848,-500.0,0.00035616,9]
[388145318,1759020646857,-500.0,0.00035616,9]
[388145319,1759020646867,-500.0,0.00035616,9]
[388145322,1759020646878,-2966.62,0.00035616,9]
[388145323,1759020646889,-500.0,0.00035616,9]
[388145326,1759020646902,-500.0,0.00035616,9]
[388145328,1759020646913,-308.46521942,0.00035616,9]
[388145330,1759020646922,-480.0,0.00035616,9]
[388145332,1759020646931,-1015.31,0.00035616,9]
[388145334,1759020646940,-1624.11,0.00035616,9]
[388145336,1759020646949,-480.0,0.00035616,9]
[388145338,1759020646958,-480.0,0.00035616,9]
[388145340,1759020646967,-487.38600145,0.00035616,9]
[388145342,1759020646976,-587.93,0.00035616,9]
[388145344,1759020646985,-480.0,0.00035616,9]
[388145345,1759020646995,-480.0,0.00035616,9]
[388145348,1759020647004,-480.0,0.00035616,9]
[388145349,1759020647014,-480.0,0.00035616,9]
[388145352,1759020647023,-480.0,0.00035616,9]
[388145354,1759020647032,-480.0,0.00035616,9]
[388145356,1759020647042,-537.28,0.00035616,9]
[388145358,1759020647052,-480.0,0.00035616,9]
[388145359,1759020647061,-480.0,0.00035616,9]
[388145361,1759020647070,-480.0,0.00035616,9]
[388145363,1759020647079,-480.0,0.00035616,9]
[388145366,1759020647089,-480.0,0.00035616,9]
[388145367,1759020647098,-480.0,0.00035616,9]
[388145370,1759020647108,-480.0,0.00035616,9]
[388145371,1759020647117,-480.0,0.00035616,9]
[388145373,1759020647127,-1700.66,0.00035616,9]
[388145376,1759020647136,-480.0,0.00035616,9]
[388145378,1759020647147,-480.0,0.00035616,9]
[388145380,1759020647156,-480.0,0.00035616,9]
[388145382,1759020647166,-395.00423328,0.00035616,9]
[388145384,1759020647175,-908.07,0.00035616,9]
[388145386,1759020647184,-480.0,0.00035616,9]
[388145388,1759020647195,-1241.07,0.00035616,9]
[388145390,1759020647205,-480.0,0.00035616,9]
[388145392,1759020647214,-570.84,0.00035616,9]
[388145394,1759020647223,-3612.7,0.00035616,9]
[388145396,1759020647232,-480.0,0.00035616,9]
[388145398,1759020647242,-1810.05,0.00035616,9]
[388145400,1759020647251,-480.0,0.00035616,9]
[388145402,1759020647261,-717.5,0.00035616,9]
[388145404,1759020647270,-804.31109693,0.00035616,9]
[388145445,1759020647653,-2278.88890307,0.00035616,9]
[388145447,1759020647663,-879.88,0.00035616,9]
[388145449,1759020647673,-480.0,0.00035616,9]
[388145451,1759020647682,-1554.39,0.00035616,9]
[388145453,1759020647692,-4303.31,0.00035616,9]
[388145455,1759020647701,-17591.26,0.00035616,9]
[388145457,1759020647715,-480.0,0.00035616,9]
[388145459,1759020647726,-480.0,0.00035616,9]
[388145461,1759020647735,-692.6,0.00035616,9]
[388145463,1759020647744,-480.0,0.00035616,9]
[388145465,1759020647754,-480.0,0.00035616,9]
[388145467,1759020647763,-9154.61,0.00035616,9]
[388145469,1759020647772,-480.0,0.00035616,9]
[388145471,1759020647782,-480.0,0.00035616,9]
[388145473,1759020647791,-1141.81,0.00035616,9]
[388145475,1759020647804,-935.04,0.00035616,9]
[388145477,1759020647814,-480.0,0.00035616,9]
[388145479,1759020647823,-480.0,0.00035616,9]
[388145481,1759020647833,-480.0,0.00035616,9]
[388145483,1759020647842,-1571.0,0.00035616,9]
[388145485,1759020647851,-480.0,0.00035616,9]
[388145487,1759020647860,-480.68196274,0.00035616,9]
[388145489,1759020647870,-480.0,0.00035616,9]
[388145491,1759020647879,-480.0,0.00035616,9]
[388145493,1759020647889,-1149.42,0.00035616,9]
[388145496,1759020647899,-1050.96,0.00035616,9]
[388145497,1759020647908,-1736.32,0.00035616,9]
[388145500,1759020647918,-151.0,0.00035616,7]
[388145502,1759020647928,-480.0,0.00035616,9]
[388145504,1759020647937,-480.0,0.00035616,9]
[388145506,1759020647946,-866.78,0.00035616,9]
[388145508,1759020647955,-225.166776,0.00035616,7]
[388145510,1759020647965,-480.0,0.00035616,9]
[388145512,1759020647974,-674.35,0.00035616,9]
[388145514,1759020647984,-480.0,0.00035616,9]
[388145516,1759020647994,-238.143104,0.00035616,7]
[388145518,1759020648003,-900.77,0.00035616,9]
[388145520,1759020648012,-1236.18,0.00035616,9]
[388145522,1759020648021,-480.0,0.00035616,9]
[388145523,1759020648031,-600.0,0.00035616,9]
[388145524,1759020648040,-1294.85,0.00035616,9]
[388145525,1759020648049,-754.2,0.00035616,9]
[388145526,1759020648059,-480.0,0.00035616,7]
[388145527,1759020648068,-2813.87,0.00035616,9]
[388145528,1759020648078,-480.0,0.00035616,9]
[388145529,1759020648086,-480.0,0.00035616,9]
[388145530,1759020648095,-480.0,0.00035616,9]
[388145531,1759020648104,-3243.57,0.00035616,9]
[388145532,1759020648113,-712.15,0.00035616,9]
[388145533,1759020648122,-480.0,0.00035616,9]
[388145534,1759020648132,-1178.21,0.00035616,9]
[388145535,1759020648141,-480.0,0.00035616,9]
[388145537,1759020648150,-10174.52,0.00035616,9]
[388145539,1759020648160,-480.0,0.00035616,9]
[388145541,1759020648169,-480.0,0.00035616,9]
[388145543,1759020648178,-480.0,0.00035616,9]
[388145545,1759020648188,-480.0,0.00035616,9]
[388145547,1759020648198,-617.49,0.00035616,9]
[388145550,1759020648207,-480.0,0.00035616,9]
[388145552,1759020648217,-480.0,0.00035616,9]
[388145554,1759020648227,-388.5438129,0.00035616,9]
[388145556,1759020648236,-2935.14,0.00035616,9]
[388145558,1759020648245,-1335.18,0.00035616,9]
[388145560,1759020648256,-4560.47,0.00035616,9]
[388145562,1759020648266,-1080.22,0.00035616,9]
[388145564,1759020648275,-345.34545128,0.00035616,9]
[388145566,1759020648286,-2806.77,0.00035616,9]
[388145568,1759020648296,-480.0,0.00035616,9]
[388145570,1759020648305,-480.0,0.00035616,9]
[388145572,1759020648314,-480.0,0.00035616,9]
[388145574,1759020648325,-480.0,0.00035616,9]
[388145576,1759020648334,-1154.18,0.00035616,9]
[388145578,1759020648343,-480.0,0.00035616,9]
[388145580,1759020648353,-480.0,0.00035616,9]
[388145582,1759020648363,-480.0,0.00035616,9]
[388145584,1759020648373,-480.0,0.00035616,9]
[388145586,1759020648382,-480.0,0.00035616,9]
[388145588,1759020648393,-480.0,0.00035616,9]
[388145590,1759020648403,-1119.03,0.00035616,9]
[388145592,1759020648413,-480.0,0.00035616,9]
[388145594,1759020648423,-480.0,0.00035616,9]
[388145596,1759020648432,-480.0,0.00035616,9]
[388145598,1759020648441,-480.0,0.00035616,9]
[388145600,1759020648450,-1082.98,0.00035616,9]
[388145602,1759020648460,-588.95,0.00035616,9]
[388145604,1759020648470,-480.0,0.00035616,9]
[388145607,1759020648479,-695.73,0.00035616,9]
[388145609,1759020648490,-1003.2,0.00035616,9]
[388145611,1759020648499,-1003.2,0.00035616,9]
[388145613,1759020648508,-1003.2,0.00035616,9]
[388145615,1759020648518,-1003.2,0.00035616,9]
[388145617,1759020648528,-1003.2,0.00035616,9]
[388145619,1759020648548,-480.0,0.00035616,9]
[388145621,1759020648558,-1003.2,0.00035616,9]
[388145623,1759020648567,-1003.2,0.00035616,9]
[388145625,1759020648577,-1003.2,0.00035616,9]
[388145627,1759020648586,-1003.2,0.00035616,9]
[388145629,1759020648596,-1003.2,0.00035616,9]
[388145631,1759020648605,-1003.2,0.00035616,9]
[388145633,1759020648615,-1003.2,0.00035616,9]
[388145635,1759020648624,-1003.2,0.00035616,9]
[388145637,1759020648634,-1003.2,0.00035616,9]
[388145639,1759020648646,-696.55,0.00035616,9]
[388145641,1759020648656,-1003.2,0.00035616,9]
[388145643,1759020648665,-1003.2,0.00035616,9]
[388145645,1759020648675,-518.77201018,0.00035616,9]
[388145648,1759020648690,-484.42798982,0.00035616,9]
[388145650,1759020648700,-394.86600488,0.00035616,9]
[388145653,1759020648723,-35.83313112,0.00035616,9]
[388145655,1759020648732,-1003.2,0.00035616,9]
[388145657,1759020648741,-111.2965432,0.00035616,9]
[388145660,1759020648752,-368.7034568,0.00035616,9]
[388145662,1759020648761,-1003.2,0.00035616,9]
[388145664,1759020648771,-1003.2,0.00035616,9]
[388145666,1759020648780,-1003.2,0.00035616,9]
[388145668,1759020648789,-1003.2,0.00035616,9]
[388145670,1759020648799,-1003.2,0.00035616,9]
[388145672,1759020648809,-480.0,0.00035616,9]
[388145674,1759020648818,-815.58,0.00035616,9]
[388145676,1759020648828,-1003.21996407,0.00035616,9]
[388145678,1759020648837,-562.73,0.00035616,9]
[388145680,1759020648847,-215.81569653,0.00035616,9]
[388145682,1759020648856,-1252.67,0.00035616,9]
[388145684,1759020648866,-593.47,0.00035616,9]
[388145686,1759020648875,-742.34,0.00035616,9]
[388145688,1759020648885,-480.0,0.00035616,9]
[388145690,1759020648894,-480.0,0.00035616,9]
[388145692,1759020648903,-1183.86,0.00035616,9]
[388145695,1759020648913,-1183.86,0.00035616,9]
[388145697,1759020648925,-480.0,0.00035616,9]
[388145699,1759020648935,-1183.86,0.00035616,9]
[388145701,1759020648945,-807.41,0.00035616,9]
[388145703,1759020648953,-1183.86,0.00035616,9]
[388145705,1759020648963,-480.0,0.00035616,9]
[388145707,1759020648973,-1183.86,0.00035616,9]
[388145709,1759020648982,-1090.55,0.00035616,9]
[388145711,1759020648991,-1183.86,0.00035616,9]
[388145713,1759020649001,-1183.86,0.00035616,9]
[388145715,1759020649011,-480.0,0.00035616,9]
[388145717,1759020649020,-756.15798017,0.00035616,9]
[388145719,1759020649032,-427.70201983,0.00035616,9]
[388145721,1759020649041,-19.15525919,0.00035616,9]
[388145724,1759020649058,-741.46474081,0.00035616,9]
[388145726,1759020649068,-1183.86,0.00035616,9]
[388145728,1759020649077,-1037.57,0.00035616,9]
[388145730,1759020649089,-1183.86,0.00035616,9]
[388145732,1759020649099,-1250.76,0.00035616,9]
[388145734,1759020649109,-1183.86,0.00035616,9]
[388145736,1759020649118,-1183.86,0.00035616,9]
[388145738,1759020649128,-1183.86,0.00035616,9]
[388145740,1759020649138,-1183.86,0.00035616,9]
[388145742,1759020649148,-1183.86,0.00035616,9]
[388145744,1759020649157,-1183.86,0.00035616,9]
[388145747,1759020649167,-1183.86,0.00035616,9]
[388145749,1759020649176,-1183.86,0.00035616,9]
[388145751,1759020649186,-1183.86,0.00035616,9]
[388145753,1759020649195,-1183.86,0.00035616,9]
[388145755,1759020649204,-2864.95,0.00035616,9]
[388145757,1759020649213,-1183.86,0.00035616,9]
[388145759,1759020649224,-883.96,0.00035616,9]
[388145761,1759020649234,-1183.86,0.00035616,9]
[388145763,1759020649243,-1183.86,0.00035616,9]
[388145765,1759020649252,-480.0,0.00035616,9]
[388145767,1759020649262,-1183.91807379,0.00035616,9]
[388145769,1759020649271,-1278.99,0.00035616,9]
[388145771,1759020649280,-480.0,0.00035616,9]
[388145773,1759020649290,-1089.75,0.00035616,9]
[388145775,1759020649300,-861.39,0.00035616,9]
[388145777,1759020649309,-1015.08,0.00035616,9]
[388145779,1759020649319,-480.0,0.00035616,9]
[388145781,1759020649328,-480.0,0.00035616,9]
[388145783,1759020649337,-852.95,0.00035616,9]
[388145785,1759020649346,-926.98,0.00035616,9]
[388145787,1759020649356,-9969.75,0.00035616,9]
[388145789,1759020649365,-480.0,0.00035616,9]
[388145791,1759020649375,-480.0,0.00035616,9]
[388145793,1759020649385,-1188.52,0.00035616,9]
[388145795,1759020649394,-480.0,0.00035616,9]
[388145797,1759020649404,-2239.03,0.00035616,9]
[388145799,1759020649414,-5572.86,0.00035616,9]
[388145801,1759020649423,-3838.95,0.00035616,9]
[388145803,1759020649433,-480.0,0.00035616,9]
[388145805,1759020649442,-480.0,0.00035616,9]
[388145807,1759020649452,-7778.91,0.00035616,3]
[388145809,1759020649461,-480.0,0.00035616,9]
[388145812,1759020649471,-480.0,0.00035616,9]
[388145813,1759020649481,-480.0,0.00035616,9]
[388145816,1759020649491,-1473.88,0.00035616,9]
[388145818,1759020649500,-480.0,0.00035616,9]
[388145820,1759020649510,-951.97,0.00035616,9]
[388145822,1759020649520,-480.0,0.00035616,9]
[388145824,1759020649530,-480.0,0.00035616,9]
[388145826,1759020649540,-1164.25,0.00035616,9]
[388145828,1759020649550,-480.0,0.00035616,9]
[388145830,1759020649560,-505.41,0.00035616,9]
[388145832,1759020649570,-948.57,0.00035616,9]
[388145834,1759020649579,-480.0,0.00035616,9]
[388145836,1759020649589,-1981.01,0.00035616,9]
[388145838,1759020649598,-6257.27,0.00035616,9]
[388145840,1759020649608,-1974.35,0.00035616,9]
[388145842,1759020649618,-547.2,0.00035616,9]
[388145844,1759020649628,-1393.21,0.00035616,9]
[388145846,1759020649638,-480.0,0.00035616,9]
[388145849,1759020649649,-480.0,0.00035616,9]
[388145851,1759020649659,-858.37,0.00035616,9]
[388145873,1759020649852,-2051.18,0.00035616,9]
[388145875,1759020649862,-480.0,0.00035616,9]
[388145877,1759020649871,-376.300621,0.00035616,7]
[388145879,1759020649880,-787.78,0.00035616,9]
[388145880,1759020649889,-480.0,0.00035616,9]
[388145883,1759020649899,-2606.03,0.00035616,9]
[388145885,1759020649908,-376.300621,0.00035616,7]
[388145887,1759020649917,-480.0,0.00035616,9]
[388145889,1759020649926,-480.0,0.00035616,9]
[388145891,1759020649935,-376.300621,0.00035616,7]
[388145893,1759020649944,-480.0,0.00035616,9]
[388145895,1759020649954,-376.300627,0.00035616,7]
[388145897,1759020649963,-480.0,0.00035616,9]
[388145899,1759020649972,-480.0,0.00035616,9]
[388145900,1759020649981,-2791.7,0.00035616,9]
[388145902,1759020649990,-483.41443866,0.00035616,9]
[388145904,1759020649999,-4744.99,0.00035616,9]
[388145906,1759020650007,-1851.81,0.00035616,9]
[388145908,1759020650016,-1091.77,0.00035616,9]
[388145910,1759020650024,-480.35546986,0.00035616,9]
[388145912,1759020650033,-891.31,0.00035616,9]
[388145914,1759020650042,-509.89,0.00035616,9]
[388145916,1759020650051,-537.93,0.00035616,9]
[388145918,1759020650060,-480.0,0.00035616,9]
[388145920,1759020650070,-780.35,0.00035616,9]
[388145922,1759020650080,-1147.24,0.00035616,9]
[388145924,1759020650089,-3173.34,0.00035616,9]
[388145926,1759020650098,-480.0,0.00035616,9]
[388145928,1759020650107,-480.82978752,0.00035616,9]
[388145930,1759020650116,-1279.44,0.00035616,9]
[388145932,1759020650125,-480.0,0.00035616,9]
[388145934,1759020650134,-6016.3,0.00035616,9]
[388145936,1759020650143,-416.18735084,0.00035616,9]
[388145938,1759020650153,-480.0,0.00035616,9]
[388145940,1759020650161,-967.69,0.00035616,9]
[388145942,1759020650171,-480.0,0.00035616,9]
[388145944,1759020650180,-480.0,0.00035616,9]
[388145946,1759020650189,-509.05051891,0.00035616,9]
[388145948,1759020650198,-480.0,0.00035616,9]
[388145950,1759020650208,-941.16,0.00035616,9]
[388145952,1759020650218,-1000.0,0.00035616,9]
[388145954,1759020650227,-695.25,0.00035616,9]
[388145956,1759020650236,-480.0,0.00035616,9]
[388145958,1759020650246,-907.78,0.00035616,9]
[388145960,1759020650255,-1149.61,0.00035616,9]
[388145962,1759020650265,-480.0,0.00035616,9]
[388145965,1759020650275,-2503.3,0.00035616,9]
[388145966,1759020650285,-166.3918094,0.00035616,9]
[388145968,1759020650294,-3340.67,0.00035616,9]
[388145971,1759020650305,-1181.76,0.00035616,9]